[Event "Slovakian-ch Youth 2022"]
[Site "Lubovna"]
[Date "2022.05.23"]
[Round "3.1"]
[White "Zdrazil, Patrik"]
[Black "Zetocha, Adrian"]
[Result "1/2-1/2"]
[ECO "B51"]
[WhiteElo "1997"]
[BlackElo "2331"]
[Annotator "TA"]
[PlyCount "71"]
[EventDate "2022.05.22"]
[EventCountry "SVK"]
[SourceTitle "playchess.com"]
[Source "ChessBase"]
[SourceQuality "1"]
[TimeControl "40/5400+30:1800+30"]

{[%evp 9,71,20,27,22,22,21,36,29,54,54,75,54,58,51,46,43,72,62,89,84,98,121,114,96,93,89,123,124,128,114,116,95,99,95,93,53,45,10,8,0,5,0,24,-145,-141,-136,-134,-132,-119,-158,-143,-142,-142,-142,-141,-141,-140,-120,-94,-109,-8,-9,0,0]} 1. e4 {[%emt 0:00:09]} c5 {[%emt 0:02:14]} 2. Nf3 {[%emt 0:00:05]} d6 {[%emt 0:00:18]} 3. Bb5+ {[%emt 0:00:11]} Nd7 {[%emt 0:00:49]} 4. O-O {[%emt 0:00:18]} a6 {[%emt 0:01:07]} 5. Bd3 {[%emt 0:02:12]} Ngf6 {[%emt 0:05:08]} 6. Re1 {[%emt 0:01:35] B51: Sicilian: Moscow Variation (3 Bb5+) without 3...Bd7.} b6 {[%emt 0:05:28]} 7. c3 {[%emt 0:02:39]} Bb7 {[%emt 0:08:10]} 8. Bc2 {[%emt 0:08:20] White is slightly better.} e5 {[%emt 0:14:08]} 9. d4 {[%emt 0:04:05] [#]} Qc7 $146 {[%emt 0:02:48]} ({Predecessor:} 9... Be7 10. d5 O-O 11. c4 g6 12. Nc3 Nh5 13. Rb1 Ng7 14. b4 cxb4 15. Rxb4 Qc7 {1-0 (31) Caruana,F (2792)-Sunilduth Lyna,N (2658) Chess.com INT 2022}) 10. Bg5 {[%emt 0:16:55]} Be7 {[%emt 0:02:59]} 11. dxe5 {[%emt 0:06:53]} dxe5 {[%emt 0:00:29]} 12. c4 {[%emt 0:00:05]} O-O {[%emt 0:13:03]} 13. Nc3 {[%emt 0:00:39]} Rfd8 {[%emt 0:08:16]} 14. Nd5 {[%emt 0:05:48]} Nxd5 {[%emt 0:01:36]} 15. exd5 {[%emt 0:00:08]} f6 {[%emt 0:00:27][%cal Bf7f6,Bf6f5][%mdl 32]} 16. Be3 {[%emt 0:22:31]} Nf8 {[%emt 0:02:12]} 17. Nd2 {[%emt 0:04:58]} Bd6 {[%emt 0:16:54]} 18. Ne4 {[%emt 0:02:17]} Bc8 {[%emt 0:00:17]} 19. Qf3 {[%emt 0:11:22]} Ra7 {[%emt 0:01:35]} 20. Rac1 {[%emt 0:04:17] White is much more active. The black rooks are badly placed.} (20. Qh5 {seems wilder.} Rb7 21. Rad1 Be7 22. g4) 20... f5 {[%emt 0:01:06]} 21. Nxd6 {[%emt 0:01:18]} Qxd6 {[%emt 0:01:45]} 22. b4 {[%emt 0:03:20]} (22. Bxf5 Rf7 23. Bxh7+ (23. g4 $2 g6 $19) 23... Nxh7 $17) 22... cxb4 {[%emt 0:06:11]} 23. c5 {[%emt 0:00:04]} ({Much weaker is} 23. Bxf5 Rf7 24. c5 Qb8 $15) (23. Ba4 {with more complications.} f4 24. c5 Qg6 25. cxb6 Bg4 26. Bc2) 23... bxc5 {[%emt 0:00:25] [#]} 24. Bxc5 $1 {[%emt 0:00:57]} Qxc5 {[%emt 0:00:14]} 25. Bxf5 {[%emt 0:00:04]} Qxd5 {[%emt 0:03:42]} 26. Rxc8 $2 {[%emt 0:01:35]} (26. Qxd5+ $11 Rxd5 27. Rxc8) 26... Qxf3 $17 {[%emt 0:00:26]} 27. gxf3 {[%emt 0:00:15]} Rxc8 {[%emt 0:00:28]} 28. Bxc8 $11 {[%emt 0:00:04][%mdl 4096] Endgame [#] KRB-KRN} Ng6 {[%emt 0:00:18]} 29. Rc1 {[%emt 0:01:10]} Nf4 {[%emt 0:01:49] And now ...Ne2+ would win.} 30. Rc5 {[%emt 0:00:27]} a5 {[%emt 0:00:37][%cal Ba6a5,Ba5a4,Ba4a3][%mdl 32]} 31. Rxe5 {[%emt 0:00:18]} Rc7 {[%emt 0:00:22] ( -> ...Rc1+)} 32. Ba6 {[%emt 0:00:34]} Rc1+ {[%emt 0:00:32]} 33. Bf1 {[%emt 0:00:25]} a4 {[%emt 0:00:33]} 34. Re4 {[%emt 0:00:46][%csl LRb4,LRf4] [#]} b3 $1 {[%emt 0:00:28]} 35. axb3 {[%emt 0:00:12] [#]} a3 $1 {[%emt 0:00:34] Threatens to win with ...a2.} 36. Ra4 {[%emt 0:00:53] Weighted Error Value: White=0.16 (very precise) /Black=0.16 (very precise)} 1/2-1/2

[Event "Slovakian-ch Youth 2022"]
[Site "Lubovna"]
[Date "2022.05.23"]
[Round "3.1"]
[White "Durana, Jonas"]
[Black "Visvader, Kristof"]
[Result "0-1"]
[ECO "B12"]
[WhiteElo "1644"]
[BlackElo "1607"]
[Annotator "NA RC COMBH"]
[PlyCount "48"]
[EventDate "2022.05.22"]
[EventCountry "SVK"]
[SourceTitle "playchess.com"]
[Source "ChessBase"]
[SourceQuality "1"]
[TimeControl "40/5400+30:1800+30"]

1. e4 {[%emt 0:00:04]} c6 {[%emt 0:00:07]} 2. d4 {[%emt 0:00:06]} d5 {[%emt 0:00:05]} 3. e5 {[%emt 0:00:03]} Bf5 {[%emt 0:02:22]} 4. h4 {[%emt 0:00:08]} h5 {[%emt 0:02:52]} 5. Bd3 {[%emt 0:02:28]} Bxd3 {[%emt 0:00:16]} 6. Qxd3 {[%emt 0:00:04]} e6 {[%emt 0:00:50]} 7. Nc3 {[%emt 0:05:03]} a6 {[%emt 0:06:31]} 8. Nf3 {[%emt 0:06:15]} c5 {[%emt 0:02:59]} 9. Be3 {[%emt 0:07:57]} cxd4 {[%emt 0:02:44]} 10. Nxd4 {[%emt 0:02:33]} Qc7 {[%emt 0:06:55]} 11. f4 {[%emt 0:01:34]} Bc5 {[%emt 0:09:35]} 12. O-O-O {[%emt 0:04:45]} Bxd4 {[%emt 0:02:13]} 13. Bxd4 {[%emt 0:00:27]} Nc6 {[%emt 0:00:50]} 14. Qg3 {[%emt 0:08:26]} g6 {[%emt 0:06:25]} 15. f5 {[%emt 0:02:54]} Nge7 {[%emt 0:07:00]} 16. fxe6 {[%emt 0:04:36]} fxe6 {[%emt 0:00:05]} 17. Rhf1 {[%emt 0:02:00]} Kd7 {[%emt 0:09:20]} 18. Rf7 {[%emt 0:01:33]} Raf8 {[%emt 0:04:56]} 19. Qxg6 {[%emt 0:06:13]} Nxd4 {[%emt 0:00:33]} 20. Rxd4 {[%emt 0:09:29]} Qxe5 {[%emt 0:00:45]} 21. Qf6 {[%emt 0:10:59]} Qxf6 {[%emt 0:01:18]} 22. Rxf6 {[%emt 0:00:52]} Rxf6 {[%emt 0:00:10]} 23. Kd1 {[%emt 0:00:30]} Rg8 {[%emt 0:00:36]} 24. Rd2 {[%emt 0:00:14]} Rg4 {[%emt 0:00:30]} 0-1

[Event "Slovakian-ch Youth 2022"]
[Site "Lubovna"]
[Date "2022.05.23"]
[Round "3.2"]
[White "Turcan, Richard"]
[Black "Gyerpal, Adrian"]
[Result "1/2-1/2"]
[ECO "D45"]
[WhiteElo "2278"]
[BlackElo "2171"]
[Annotator "TA"]
[PlyCount "79"]
[EventDate "2022.05.22"]
[EventCountry "SVK"]
[SourceTitle "playchess.com"]
[Source "ChessBase"]
[SourceQuality "1"]
[TimeControl "40/5400+30:1800+30"]

{[%evp 14,79,0,-8,0,-6,0,0,0,0,0,0,0,0,0,0,0,-73,-58,-45,-57,-87,-27,-25,-15,-11,0,0,0,0,0,0,0,-15,-7,-32,0,0,0,0,0,0,7,5,22,0,11,0,7,16,45,7,7,0,0,0,0,0,0,0,0,0,8,0,0,0,0,0]} 1. d4 {[%emt 0:05:54]} d5 {[%emt 0:00:01]} 2. c4 {[%emt 0:00:09]} c6 {[%emt 0:00:06]} 3. Nc3 {[%emt 0:00:10]} Nf6 {[%emt 0:00:07]} 4. Nf3 {[%emt 0:00:06]} e6 {[%emt 0:00:30]} 5. e3 {[%emt 0:00:11]} Nbd7 {[%emt 0:00:48]} 6. Qc2 {[%emt 0:01:19]} Bd6 {[%emt 0:01:08]} 7. g4 {[%emt 0:01:05]} h6 {[%emt 0:02:11]} 8. Rg1 {[%emt 0:00:48]} e5 {[%emt 0:01:49] D45: Semi-Slav: 5 e3.} 9. cxd5 {[%emt 0:00:19]} cxd5 {[%emt 0:00:51]} 10. Nb5 {[%emt 0:00:19]} Bb8 {[%emt 0:01:14]} 11. g5 {[%emt 0:00:20]} hxg5 {[%emt 0:02:22]} 12. Nxg5 {[%emt 0:00:31][%cal Og5e6] [#] aiming for Ne6!} e4 {[%emt 0:03:56]} ({But not} 12... Rxh2 13. Bd2 (13. Nxf7 Kxf7 14. Qg6+ Ke6 $11) 13... e4 14. Rc1 $16) 13. Bd2 {[%emt 0:00:38]} Nb6 {[%emt 0:01:43]} 14. Qc5 {[%emt 0:02:49]} Bd7 {[%emt 0:09:16]} 15. Nd6+ {[%emt 0:01:09]} (15. Bb4 $11) 15... Bxd6 $17 {[%emt 0:00:10]} 16. Qxd6 {[%emt 0:00:05] Bb4 is the strong threat.} Qe7 {[%emt 0:05:24]} 17. Qe5 {[%emt 0:02:48][%cal Og5f7] [#]} Qxe5 {[%emt 0:17:59]} (17... Ng4 $1 $17 {[%cal Rg4e5]} 18. Qxe7+ (18. Qxg7 O-O-O $17) 18... Kxe7) 18. dxe5 $11 {[%emt 0:00:21] [#]} Nh7 $146 {[%emt 0:00:56][%cal Bf6h7,Bh7f8,Bf8e6][%mdl 32]} ({Predecessor:} 18... Rxh2 19. exf6 gxf6 20. Nxe4 dxe4 21. Bb4 Rh8 22. O-O-O Bc6 23. Bc3 Ke7 24. Bb4+ Ke8 {½-½ (30) Rapport,R (2752)-Ragger,M (2697) Baku 2016}) 19. Nh3 {[%emt 0:00:14]} Bxh3 {[%emt 0:03:48]} 20. Bxh3 {[%emt 0:00:09]} Nf8 {[%emt 0:00:25]} 21. Bf1 {[%emt 0:00:51]} Ne6 {[%emt 0:02:40]} 22. h3 {[%emt 0:10:21]} Rc8 {[%emt 0:04:15]} 23. Bc3 {[%emt 0:05:59]} a6 {[%emt 0:08:07]} 24. Rd1 {[%emt 0:05:45]} Na4 {[%emt 0:02:48]} 25. Rxd5 {[%emt 0:03:14]} Nxc3 {[%emt 0:01:19]} 26. bxc3 {[%emt 0:00:12]} Rxc3 {[%emt 0:01:25]} 27. Rg4 {[%emt 0:02:01]} Ra3 {[%emt 0:08:25]} 28. Rd2 {[%emt 0:02:34]} Ra5 {[%emt 0:06:11]} 29. Rb2 {[%emt 0:07:29]} b5 {[%emt 0:00:10]} 30. Rxe4 {[%emt 0:00:49]} (30. Rc2 {keeps more tension.} Kd7 31. Bg2 Ra3 32. Ke2) 30... Ke7 {[%emt 0:01:33]} 31. Rc2 {[%emt 0:03:50]} Ra3 {[%emt 0:01:22]} 32. Rb4 {[%emt 0:02:15]} Rh5 {[%emt 0:01:22] The position is equal.} 33. Re4 {[%emt 0:06:45]} Ng5 {[%emt 0:02:21][%csl LRe4,LRh3]} 34. Be2 {[%emt 0:01:56]} Rxh3 {[%emt 0:01:27]} 35. Rd4 {[%emt 0:00:15]} Rh1+ {[%emt 0:00:59]} 36. Kd2 {[%emt 0:00:06]} Ne6 {[%emt 0:00:41]} 37. Rd3 {[%emt 0:01:36]} Rxd3+ {[%emt 0:02:49]} 38. Bxd3 {[%emt 0:03:45]} Rh2 {[%emt 0:01:02]} 39. Ke2 {[%emt 0:00:07]} Rh4 {[%emt 0:00:51]} 40. Bf5 {[%emt 0:05:21] Weighted Error Value: White=0.10 (very precise) /Black=0.06 (flawless)} 1/2-1/2

[Event "Slovakian-ch Youth 2022"]
[Site "Lubovna"]
[Date "2022.05.23"]
[Round "3.2"]
[White "Benci, Jozef"]
[Black "Gay, Lukas"]
[Result "1/2-1/2"]
[ECO "A04"]
[WhiteElo "1873"]
[BlackElo "1480"]
[Annotator "NA RC COMBH"]
[PlyCount "82"]
[EventDate "2022.05.22"]
[EventCountry "SVK"]
[SourceTitle "playchess.com"]
[Source "ChessBase"]
[SourceQuality "1"]
[TimeControl "40/5400+30:1800+30"]

{[%evp 17,71,51,97,60,106,92,94,32767,155,32767,32767,89,139,80,145,54,52,32767,36,32767,32767,32767,32767,32767,32767,-6,12,30,66,11,8,-31,-33,-117,-52,-45,32767,-12,32767,-294,-302,-721,-378,32767,32767,32767,32767,-63,-16,-39,0,0,0,-50,-66,-49]} 1. Nf3 {[%emt 0:00:03]} e6 {[%emt 0:00:46]} 2. g3 {[%emt 0:01:15]} f5 {[%emt 0:01:06]} 3. d3 {[%emt 0:02:05]} Be7 {[%emt 0:00:47]} 4. Bg2 {[%emt 0:00:52]} Nf6 {[%emt 0:01:02]} 5. c4 {[%emt 0:01:23]} c6 {[%emt 0:01:35]} 6. Nbd2 {[%emt 0:06:49]} d5 {[%emt 0:01:44]} 7. b3 {[%emt 0:03:15]} O-O {[%emt 0:04:25]} 8. O-O {[%emt 0:04:28]} Qc7 {[%emt 0:01:14]} 9. Bb2 {[%emt 0:02:31]} Bd6 {[%emt 0:03:00]} 10. Rc1 {[%emt 0:10:58]} (10. e4 $16 dxe4 11. dxe4) 10... Na6 {[%emt 0:03:31] [#]} 11. a3 $1 {[%emt 0:08:06]} f4 {[%emt 0:01:20]} 12. b4 {[%emt 0:02:48]} fxg3 {[%emt 0:01:38]} (12... Qe7 $142) 13. hxg3 {[%emt 0:00:27]} Qf7 {[%emt 0:06:35]} 14. e3 {[%emt 0:16:02]} (14. e4 $142 Ng4 15. Bh3) 14... Qg6 {[%emt 0:01:29]} (14... Ng4 $142) 15. Qe2 {[%emt 0:01:53]} ({White should play} 15. e4 Bc7 16. Nh4) 15... Bd7 {[%emt 0:02:54]} (15... Qh5 $142) 16. c5 {[%emt 0:13:28]} (16. e4 $16 Bc7 17. e5) 16... Bc7 {[%emt 0:00:44]} 17. Be5 {[%emt 0:01:23]} Qh5 {[%emt 0:02:47]} 18. Bxf6 {[%emt 0:09:58]} Rxf6 {[%emt 0:00:18]} 19. Rfe1 {[%emt 0:02:03]} Raf8 {[%emt 0:00:55]} 20. d4 {[%emt 0:02:05]} Rh6 {[%emt 0:03:14]} 21. Nh4 {[%emt 0:02:07]} (21. Nf1 $14) 21... Qxe2 {[%emt 0:02:22]} 22. Rxe2 $11 {[%emt 0:00:01]} e5 {[%emt 0:00:55]} ({Black should play} 22... g5 $1 $11 23. Nhf3 Rg6) 23. dxe5 {[%emt 0:01:32]} (23. e4 $14) 23... Bxe5 {[%emt 0:00:11]} 24. Ndf3 {[%emt 0:01:42]} (24. Rc2 $11) 24... Bf6 $1 {[%emt 0:00:59]} 25. Bh1 {[%emt 0:01:12]} (25. Nd4 $11) 25... Bg4 {[%emt 0:00:26]} (25... Bxh4 $17 26. Ne5 {[#]} Bxg3 $1 {[%mdl 512]} 27. fxg3 Be6) 26. Rd2 {[%emt 0:00:49]} Bxh4 {[%emt 0:02:00]} 27. Nxh4 {[%emt 0:00:49]} g5 {[%emt 0:00:09]} 28. Ng2 $2 {[%emt 0:00:56]} (28. Rd4 $11 {and White is okay.} Be6 29. Ng2) 28... Bf3 {[%emt 0:00:44]} 29. Rd4 $2 {[%emt 0:00:50]} (29. e4 dxe4 30. Rc3) 29... Nc7 {[%emt 0:00:38]} (29... Rh3 $142 30. b5 Rf6 31. bxa6 bxa6) 30. a4 {[%emt 0:00:28]} Ne6 {[%emt 0:00:10]} 31. Rd2 {[%emt 0:00:21]} g4 {[%emt 0:00:07]} 32. Nh4 {[%emt 0:00:31]} Ng5 {[%emt 0:00:24]} (32... Bxh1 $15 33. Kxh1 Rhf6) 33. Bxf3 {[%emt 0:01:10]} Nxf3+ {[%emt 0:00:44]} 34. Nxf3 {[%emt 0:00:13]} gxf3 {[%emt 0:00:23]} 35. Rd4 {[%emt 0:00:59]} (35. e4 $1 $11) 35... Rf5 $1 {[%emt 0:00:08]} 36. Rg4+ $1 {[%emt 0:00:36]} Kh8 {[%emt 0:00:23]} 37. Rh4 {[%emt 0:00:13]} Rxh4 {[%emt 0:00:15]} 38. gxh4 {[%emt 0:00:01]} Rh5 {[%emt 0:00:13]} 39. Rd1 {[%emt 0:00:51]} Rxh4 {[%emt 0:00:32]} 40. Rd4 {[%emt 0:00:04]} Rh3 {[%emt 0:00:54]} 41. Rg4 {[%emt 0:13:04]} a6 1/2-1/2

[Event "Slovakian-ch Youth 2022"]
[Site "Lubovna"]
[Date "2022.05.23"]
[Round "3.2"]
[White "Muller, Tomas"]
[Black "Pisarcik, Richard"]
[Result "0-1"]
[ECO "A04"]
[WhiteElo "1240"]
[BlackElo "1343"]
[Annotator "NA RC COMBH"]
[PlyCount "76"]
[EventDate "2022.05.22"]
[EventCountry "SVK"]
[SourceTitle "playchess.com"]
[Source "ChessBase"]
[SourceQuality "1"]
[TimeControl "40/5400+30:1800+30"]

1. Nf3 {[%emt 0:02:35]} c5 {[%emt 0:01:09]} 2. c4 {[%emt 0:03:06]} Nc6 {[%emt 0:00:13]} 3. b3 {[%emt 0:02:42]} d6 {[%emt 0:00:23]} 4. Bb2 {[%emt 0:01:59]} Nf6 {[%emt 0:01:04]} 5. g3 {[%emt 0:02:47]} g6 {[%emt 0:03:51]} 6. Bg2 {[%emt 0:02:20]} Bg7 {[%emt 0:04:18]} 7. d3 {[%emt 0:02:30]} O-O {[%emt 0:01:28]} 8. Nbd2 {[%emt 0:02:21]} Qb6 {[%emt 0:05:16]} 9. Rb1 {[%emt 0:02:17]} d5 {[%emt 0:01:00]} 10. cxd5 {[%emt 0:02:42]} Nxd5 {[%emt 0:00:32]} 11. Qc2 {[%emt 0:02:07]} Ndb4 {[%emt 0:02:20]} 12. Qc4 {[%emt 0:03:03]} Be6 {[%emt 0:00:58]} 13. Qc1 {[%emt 0:03:58]} Nxa2 {[%emt 0:01:32]} 14. Qd1 {[%emt 0:04:00]} Ncb4 {[%emt 0:02:25]} 15. Bxg7 {[%emt 0:01:59]} Kxg7 {[%emt 0:01:10]} 16. O-O {[%emt 0:01:53]} Nc3 17. Qc1 {[%emt 0:05:14]} Nxe2+ {[%emt 0:00:15]} 18. Kh1 {[%emt 0:01:16]} Nxc1 {[%emt 0:00:05]} 19. Rfxc1 {[%emt 0:00:42]} Nxd3 {[%emt 0:00:51]} 20. Rf1 {[%emt 0:00:31]} c4 {[%emt 0:00:34]} 21. Kg1 {[%emt 0:01:54]} c3 {[%emt 0:00:26]} 22. Nc4 {[%emt 0:01:14]} Bxc4 {[%emt 0:00:50]} 23. bxc4 {[%emt 0:00:31]} Qc5 {[%emt 0:00:36]} 24. Ne1 {[%emt 0:03:05]} Qxc4 {[%emt 0:01:17]} 25. Nxd3 {[%emt 0:01:23]} Qxd3 {[%emt 0:00:14]} 26. Rb3 {[%emt 0:01:02]} Qd2 {[%emt 0:00:25]} 27. Bf3 {[%emt 0:02:03]} c2 {[%emt 0:00:21]} 28. Rb2 {[%emt 0:00:23]} c1=Q {[%emt 0:00:45]} 29. Rxd2 {[%emt 0:00:44]} Qxd2 {[%emt 0:00:09]} 30. Rd1 {[%emt 0:00:12]} Qc3 {[%emt 0:00:40]} 31. Bg2 {[%emt 0:00:30]} Rfd8 {[%emt 0:00:08]} 32. Rf1 {[%emt 0:00:21]} Qc2 {[%emt 0:00:11]} 33. Bf3 {[%emt 0:00:13]} Rd2 {[%emt 0:00:15]} 34. Kg2 {[%emt 0:00:39]} Rad8 {[%emt 0:00:58]} 35. Kh3 {[%emt 0:01:01]} Rxf2 {[%emt 0:00:16]} 36. Rxf2 {[%emt 0:00:07]} Qxf2 {[%emt 0:00:09]} 37. Bxb7 {[%emt 0:00:18]} h5 {[%emt 0:00:12]} 38. g4 {[%emt 0:00:07]} Rd3+ {[%emt 0:00:17]} 0-1

[Event "Slovakian-ch Youth 2022"]
[Site "Lubovna"]
[Date "2022.05.23"]
[Round "3.3"]
[White "Beres, Tomas"]
[Black "Bochnicka, Vladimir"]
[Result "0-1"]
[ECO "B32"]
[WhiteElo "2059"]
[BlackElo "2267"]
[Annotator "TA"]
[PlyCount "104"]
[EventDate "2022.05.22"]
[EventCountry "SVK"]
[SourceTitle "playchess.com"]
[Source "ChessBase"]
[SourceQuality "1"]
[TimeControl "40/5400+30:1800+30"]

{[%evp 15,104,-11,12,-31,0,-14,1,0,0,0,-4,-25,28,7,10,-20,-16,-10,-12,-22,-12,-16,10,0,14,34,27,0,0,0,0,-3,14,0,69,66,65,71,53,0,6,0,0,0,32,0,123,49,99,0,14,15,16,0,194,111,116,-152,-133,-127,-75,-453,-287,-393,-362,-326,-308,-592,-572,-834,-782,-998,-972,-1831,-1405,-29990,-29981,-29990,-29991,-29994,-29992,-29992,-29993,-29994,-29992,-29995,-29993,-29993,-29994,-29996,-29997]} 1. e4 {[%emt 0:00:09]} c5 {[%emt 0:00:06]} 2. Nf3 {[%emt 0:00:30][%cal Bg1f3,Bf3d4,Bd4b5][%mdl 32]} Nc6 {[%emt 0:00:10]} 3. d4 {[%emt 0:00:18]} cxd4 {[%emt 0:00:07]} 4. Nxd4 {[%emt 0:00:08]} e5 {[%emt 0:00:22]} 5. Nb5 {[%emt 0:00:31]} d6 {[%emt 0:00:08]} 6. N1c3 {[%emt 0:00:27]} a6 {[%emt 0:00:13]} 7. Na3 {[%emt 0:00:05]} Be7 {[%emt 0:00:12]} 8. g3 {[%emt 0:23:40]} Nf6 {[%emt 0:01:07]} 9. Bg2 {[%emt 0:00:36] B32: Sicilian: Löwenthal and Kalashnikov Variations.} O-O {[%emt 0:03:47]} (9... Bg4 $5 {[%cal Rg4d1]} 10. Qd3 Nb4 $11) 10. O-O {[%emt 0:01:19]} Bg4 {[%emt 0:04:15]} 11. f3 {[%emt 0:03:19] The position is equal.} Be6 {[%emt 0:01:39]} 12. Nd5 {[%emt 0:01:38]} b5 {[%emt 0:06:16] [#]} 13. Be3 $146 {[%emt 0:05:05]} ({Predecessor:} 13. c3 b4 14. Nc4 Bxd5 15. exd5 Na5 16. Ne3 bxc3 17. bxc3 Qb6 18. Kh1 Rfc8 19. Nf5 {0-1 (43) Zhuk,I (2144)-Badelka,O (2375) Rogachev 2018}) 13... Rc8 {[%emt 0:06:43]} (13... Bxd5 $142 14. exd5 Nb4) 14. Qd2 {[%emt 0:13:59]} b4 {[%emt 0:20:50]} 15. Nc4 {[%emt 0:13:04]} ({Much worse is} 15. Nxb4 Nxb4 16. Qxb4 d5 $17) 15... Bxd5 {[%emt 0:07:01]} 16. exd5 {[%emt 0:00:06]} Nd4 {[%emt 0:00:16]} 17. Bxd4 {[%emt 0:00:54]} Rxc4 {[%emt 0:02:19]} 18. Bf2 {[%emt 0:03:33]} Qc7 {[%emt 0:07:11]} 19. Rfc1 {[%emt 0:02:22]} Rc8 {[%emt 0:09:46][%cal Rc4c2]} 20. Bh3 {[%emt 0:00:55]} Nd7 $1 {[%emt 0:01:20]} 21. Bf1 {[%emt 0:01:42]} Rxc2 {[%emt 0:02:14]} 22. Rxc2 {[%emt 0:00:05]} Qxc2 {[%emt 0:00:04]} 23. Qxb4 {[%emt 0:00:10]} Nc5 {[%emt 0:05:45]} (23... Rb8 $5 {[%cal Rb8b4]} 24. Qc3 Qxb2 25. Qxb2 Rxb2 $11) 24. Qc3 {[%emt 0:03:53]} Na4 {[%emt 0:06:12]} (24... Qxc3 $1 $11 25. bxc3 Na4) 25. Qxc2 $1 $14 {[%emt 0:00:52]} Rxc2 {[%emt 0:00:02]} 26. b3 $36 {[%emt 0:01:12][%mdl 2048] Black is under strong pressure.} Nc3 {[%emt 0:01:49][%csl LRa2,LRd5][%cal Ba4c3,Bc3a2,Ba2c1,Bc1b3][%mdl 32]} 27. Bxa6 {[%emt 0:01:30]} (27. a4 $14) 27... Nxa2 $11 {[%emt 0:02:29]} 28. Be1 {[%emt 0:05:15]} Nc1 {[%emt 0:05:29] Against Bd3} 29. b4 {[%emt 0:06:05]} Bd8 {[%emt 0:02:07]} 30. Bf2 {[%emt 0:00:15]} (30. Bb5 $5 {[%cal Ra1a8]} Kf8 31. Ra8 $11) 30... f5 {[%emt 0:01:49] [#]} (30... Nb3 $11 {remains equal.} 31. Ra3 Nd4) 31. Bb5 {[%emt 0:03:44] This bishop pair is nice.} (31. Bf1 $1 $16 {aiming for Ra8.} Kf7 32. b5) 31... Kf7 {[%emt 0:01:07]} (31... Bf6 $1 $14) 32. Be3 {[%emt 0:02:46]} (32. Ra7+ $16 Be7 33. g4) 32... Nb3 {[%emt 0:01:08]} 33. Ra7+ {[%emt 0:02:03]} Kf6 $1 {[%emt 0:00:54][%cal Of5f4]} 34. Rd7 {[%emt 0:01:41][%csl LRd6,LRd8]} Bc7 {[%emt 0:01:02] [#]} (34... Be7 $1 $11) 35. Ba4 {[%emt 0:01:05]} (35. h4 $18 {Bg5+ is the strong threat.} Nd4 36. Bxd4 exd4 37. Kf1) 35... Rc3 $16 {[%emt 0:00:38]} 36. Bc6 $2 {[%emt 0:02:44][%mdl 8192]} Rxe3 $17 {[%emt 0:00:21]} 37. Rxc7 {[%emt 0:00:08]} Rxf3 {[%emt 0:00:39][%mdl 4096] Endgame KRB-KRN} 38. b5 $2 {[%emt 0:00:35][%mdl 8192] White does not recover from this.} (38. Rd7 $17 {was the crucial defense.}) 38... Nc5 {[%emt 0:00:47]} 39. b6 {[%emt 0:00:59]} Rb3 {[%emt 0:00:21]} 40. b7 {[%emt 0:00:09]} e4 {[%emt 0:00:23]} 41. Rc8 $2 {[%emt 0:30:16]} (41. Kf1) 41... Nxb7 $19 {[%emt 0:02:35]} 42. Re8 {[%emt 0:00:00]} Nc5 {[%emt 0:00:27]} 43. Kf2 {[%emt 0:00:00]} g5 {[%emt 0:01:18]} 44. Rh8 {[%emt 0:00:00]} f4 {[%emt 0:01:33][%cal Bf5f4,Bf4f3][%mdl 32]} 45. Rxh7 {[%emt 0:00:00]} Rb2+ {[%emt 0:00:39] Black mates.} 46. Kf1 {[%emt 0:00:00]} f3 {[%emt 0:00:26]} 47. Rh8 {[%emt 0:00:00]} Ke5 {[%emt 0:00:18]} 48. h4 {[%emt 0:00:00]} Nd3 {[%emt 0:01:00][%cal Rb2b1]} 49. Kg1 {[%emt 0:00:00]} Rb1+ {[%emt 0:00:24]} 50. Kh2 {[%emt 0:00:00]} g4 {[%emt 0:00:47]} 51. Re8+ {[%emt 0:00:00]} Kd4 {[%emt 0:00:07]} 52. Bd7 {[%emt 0:00:00]} Nf2 {[%emt 0:00:13] Weighted Error Value: White=0.78/Black=0.27 (precise)} 0-1